fUST/lending_fUST_20240625
["ID","MTS","AMOUNT","RATE_DAILY","PERIOD"]
[330329141,1719258641774,-6727.38,0.00016438,2]
[330329142,1719258641787,-500.0,0.00016438,2]
[330329143,1719258641796,-500.0,0.00016438,2]
[330329144,1719258641805,-515.52002573,0.00016438,2]
[330329145,1719258641814,-500.0,0.00016438,2]
[330329146,1719258641825,-500.0,0.00016438,2]
[330329147,1719258641835,-500.0,0.00016438,2]
[330329148,1719258641844,-500.0,0.00016438,2]
[330329149,1719258641854,-500.0,0.00016438,2]
[330329150,1719258641864,-500.0,0.00016438,2]
[330329151,1719258641872,-500.0,0.00016438,2]
[330329152,1719258641882,-822.86,0.00016438,2]
[330329153,1719258641897,-500.0,0.00016438,2]
[330329154,1719258641906,-250.0,0.00016438,2]
[330329155,1719258641915,-500.0,0.00016438,2]
[330329156,1719258641924,-500.0,0.00016438,2]
[330329157,1719258641936,-501.32110454,0.00016438,2]
[330329158,1719258641945,-500.0,0.00016438,2]
[330329159,1719258641955,-505.0900718,0.00016438,2]
[330329160,1719258641964,-500.0,0.00016438,2]
[330329161,1719258641973,-1225.16,0.00016438,2]
[330329162,1719258641982,-500.0,0.00016438,2]
[330329163,1719258641991,-500.0,0.00016438,2]
[330329164,1719258642000,-500.0,0.00016438,2]
[330329165,1719258642009,-500.0,0.00016438,2]
[330329166,1719258642017,-500.0,0.00016438,2]
[330329167,1719258642026,-500.0,0.00016438,2]
[330329168,1719258642035,-2424.68,0.00016438,2]
[330329169,1719258642044,-500.0,0.00016438,2]
[330329170,1719258642054,-1012.69,0.00016438,2]
[330329171,1719258642063,-500.0,0.00016438,2]
[330329172,1719258642072,-500.0,0.00016438,2]
[330329173,1719258642081,-500.0,0.00016438,2]
[330329174,1719258642091,-500.0,0.00016438,2]
[330329175,1719258642100,-550.36,0.00016438,2]
[330329176,1719258642110,-1861.81152984,0.00016438,2]
[330329177,1719258642134,-1032.61847016,0.00016438,2]
[330329178,1719258642148,-500.0,0.00016438,2]
[330329179,1719258642157,-6.12351514,0.00016438,2]
[330329180,1719258642183,-2824.23165146,0.00016186,2]
[330329181,1719258642193,-388.17948331,0.00016337,2]
[330329182,1719258642202,-493.87648486,0.00016438,2]
[330329183,1719258642212,-500.0,0.00016438,2]
[330329184,1719258642221,-500.0,0.00016438,2]
[330329185,1719258642231,-500.0,0.00016438,2]
[330329186,1719258642241,-500.0,0.00016438,2]
[330329187,1719258642251,-509.93583169,0.00016438,2]
[330329188,1719258642261,-500.0,0.00016438,2]
[330329189,1719258642270,-500.0,0.00016438,2]
[330329190,1719258642280,-500.0,0.00016438,2]
[330329191,1719258642290,-500.0,0.00016438,2]
[330329192,1719258642299,-264.90903088,0.00016438,2]
[330329193,1719258642308,-500.0,0.00016438,2]
[330329194,1719258642317,-500.0,0.00016438,2]
[330329195,1719258642327,-500.0,0.00016438,2]
[330329196,1719258642337,-500.0,0.00016438,2]
[330329197,1719258642346,-500.0,0.00016438,2]
[330329198,1719258642355,-500.0,0.00016438,2]
[330329199,1719258642365,-500.0,0.00016438,2]
[330329200,1719258642375,-500.0,0.00016438,2]
[330329201,1719258642387,-500.0,0.00016438,2]
[330329202,1719258642400,-500.0,0.00016438,2]
[330329203,1719258642409,-500.0,0.00016438,2]
[330329204,1719258642418,-500.0,0.00016438,2]
[330329205,1719258642427,-500.0,0.00016438,2]
[330329206,1719258642438,-500.0,0.00016438,2]
[330329207,1719258642447,-1073.95,0.00016438,2]
[330329208,1719258642457,-1073.95,0.00016438,2]
[330329209,1719258642466,-1073.95,0.00016438,2]
[330329210,1719258642476,-1073.95,0.00016438,2]
[330329211,1719258642485,-1073.95,0.00016438,2]
[330329212,1719258642617,-500.0,0.00016438,2]
[330329213,1719258642626,-1073.95,0.00016438,2]
[330329214,1719258642638,-500.0,0.00016438,2]
[330329215,1719258642648,-1073.95,0.00016438,2]
[330329216,1719258642658,-1073.95,0.00016438,2]
[330329217,1719258642668,-1073.95,0.00016438,2]
[330329219,1719258642677,-1073.95,0.00016438,2]
[330329221,1719258642687,-500.0,0.00016438,2]
[330329223,1719258642696,-500.0,0.00016438,2]
[330329225,1719258642705,-2002.83,0.00016438,2]
[330329227,1719258642718,-565.0,0.00016438,2]
[330329229,1719258642727,-525.79744141,0.00016438,2]
[330329232,1719258642737,-504.01179433,0.00016438,2]
[330329234,1719258642746,-500.0,0.00016438,2]
[330329236,1719258642756,-633.25434302,0.00016438,2]
[330329238,1719258642766,-500.0,0.00016438,2]
[330329240,1719258642779,-500.0,0.00016438,2]
[330329242,1719258642789,-936.32,0.00016438,2]
[330329243,1719258642800,-541.46171201,0.00016438,2]
[330329244,1719258642809,-441.68852078,0.00016438,2]
[330329245,1719258642819,-500.0,0.00016438,2]
[330329246,1719258642828,-2335.31146037,0.00016438,2]
[330329253,1719258642923,-2418.22853963,0.00016438,2]
[330329254,1719258642933,-500.0,0.00016438,2]
[330329255,1719258642942,-500.0,0.00016438,2]
[330329257,1719258642953,-500.0,0.00016438,2]
[330329259,1719258642961,-437.76946773,0.00016438,2]
[330329262,1719258643230,-62.23053227,0.00016438,2]
[330329263,1719258643239,-500.0,0.00016438,2]
[330329264,1719258643249,-500.0,0.00016438,2]
[330329265,1719258643259,-500.0,0.00016438,2]
[330329266,1719258643268,-500.0,0.00016438,2]
[330329267,1719258643277,-2287.51,0.00016438,2]
[330329268,1719258643287,-500.0,0.00016438,2]
[330329269,1719258643296,-508.70147791,0.00016438,2]
[330329270,1719258643305,-500.0,0.00016438,2]
[330329271,1719258643314,-500.0,0.00016438,2]
[330329272,1719258643324,-500.0,0.00016438,2]
[330329273,1719258643333,-500.0,0.00016438,2]
[330329275,1719258643343,-500.0,0.00016438,2]
[330329277,1719258643352,-500.0,0.00016438,2]
[330329279,1719258643362,-500.0,0.00016438,2]
[330329281,1719258643371,-660.64,0.00016438,2]
[330329282,1719258643380,-500.0,0.00016438,2]
[330329284,1719258643392,-500.0,0.00016438,2]
[330329286,1719258643402,-2867.23,0.00016438,2]
[330329287,1719258643411,-500.0,0.00016438,2]
[330329288,1719258643421,-500.0,0.00016438,2]
[330329289,1719258643430,-220.9606705,0.00016438,2]
[330329290,1719258643458,-279.0393295,0.00016438,2]
[330329291,1719258643468,-1212.43051316,0.00016438,2]
[330329292,1719258643480,-1223.75948684,0.00016438,2]
[330329293,1719258643489,-500.0,0.00016438,2]
[330329294,1719258643499,-500.0,0.00016438,2]
[330329295,1719258643508,-500.0,0.00016438,2]
[330329296,1719258643517,-500.0,0.00016438,2]
[330329297,1719258643527,-500.0,0.00016438,2]
[330329298,1719258643536,-1342.89,0.00016438,2]
[330329299,1719258643546,-500.0,0.00016438,2]
[330329300,1719258643556,-500.0,0.00016438,2]
[330329301,1719258643566,-500.0,0.00016438,2]
[330329302,1719258643575,-500.0,0.00016438,2]
[330329303,1719258643585,-504.17106983,0.00016438,2]
[330329304,1719258643596,-500.0,0.00016438,2]
[330329305,1719258643605,-500.0,0.00016438,2]
[330329306,1719258643615,-500.0,0.00016438,2]
[330329307,1719258643625,-7602.42,0.00016438,2]
[330329308,1719258643638,-500.0,0.00016438,2]
[330329309,1719258643647,-500.0,0.00016438,2]
[330329310,1719258643657,-500.0,0.00016438,2]
[330329311,1719258643667,-500.0,0.00016438,2]
[330329312,1719258643677,-500.0,0.00016438,2]
[330329313,1719258643686,-417.27709819,0.00016438,2]
[330329351,1719258646206,-82.72290181,0.00016438,2]
[330329352,1719258646216,-500.0,0.00016438,2]
[330329353,1719258646225,-37.61276287,0.00016438,2]
[330329354,1719258646237,-462.38723713,0.00016438,2]
[330329355,1719258646247,-500.0,0.00016438,2]
[330329356,1719258646256,-500.0,0.00016438,2]
[330329357,1719258646266,-500.0,0.00016438,2]
[330329358,1719258646275,-500.0,0.00016438,2]
[330329359,1719258646284,-500.0,0.00016438,2]
[330329360,1719258646293,-500.0,0.00016438,2]
[330329361,1719258646303,-500.0,0.00016438,2]
[330329362,1719258646314,-500.0,0.00016438,2]
[330329363,1719258646324,-500.0,0.00016438,2]
[330329364,1719258646334,-500.0,0.00016438,2]
[330329365,1719258646343,-21628.8,0.00016438,2]
[330329366,1719258646352,-500.0,0.00016438,2]
[330329367,1719258646362,-500.0,0.00016438,2]
[330329368,1719258646371,-180.0,0.000165,2]
[330329369,1719258646381,-235.0,0.00016519,2]
[330329370,1719258646394,-420.0,0.00016605,2]
[330329371,1719258646403,-276.08930439,0.00016685,2]
[330329372,1719258646412,-276.08930439,0.00016686,2]
[330329373,1719258646420,-500.0,0.0001671,2]
[330329374,1719258646429,-1073.95,0.00016711,2]
[330329375,1719258646441,-1073.95,0.00016711,2]
[330329376,1719258646450,-1073.95,0.00016711,2]
[330329377,1719258646460,-1073.95,0.00016711,2]
[330329378,1719258646469,-500.0,0.00016711,2]
[330329379,1719258646478,-500.0,0.00016711,2]
[330329380,1719258646487,-500.0,0.00016711,2]
[330329381,1719258646496,-500.0,0.00016711,2]
[330329382,1719258646505,-208.63718054,0.00016711,2]
[330329383,1719258646515,-68.73998746,0.00016712,2]
[330329384,1719258646527,-431.26001254,0.00016712,2]
[330329385,1719258646537,-184.50782468,0.00016712,2]
[330329386,1719258646547,-261.26474527,0.00016712,2]
[330329387,1719258646557,-500.0,0.00016712,2]
[330329388,1719258646567,-500.0,0.00016712,2]
[330329389,1719258646576,-500.0,0.00016712,2]
[330329390,1719258646586,-500.0,0.00016712,2]
[330329391,1719258646596,-500.0,0.00016712,2]
[330329392,1719258646605,-500.0,0.00016712,2]
[330329393,1719258646614,-500.0,0.00016712,2]
[330329394,1719258646624,-500.0,0.00016712,2]
[330329395,1719258646633,-500.0,0.00016712,2]
[330329396,1719258646644,-500.0,0.00016712,2]
[330329397,1719258646654,-500.0,0.00016712,2]
[330329398,1719258646663,-500.0,0.00016712,2]
[330329399,1719258646673,-500.0,0.00016712,2]
[330329400,1719258646682,-232.5165384,0.00016712,2]
[330329401,1719258656613,305.79586831,0.00021584,60]
[330329402,1719258661217,525.44492293,0.00021584,60]
[330329403,1719258751944,150.5,0.00016976,62]
[330329404,1719258752444,150.5,0.00016966,62]
[330329405,1719258753096,150.5,0.00016956,62]
[330329406,1719258753647,150.5,0.0001999,62]
[330329407,1719258754973,150.5,0.0001998,62]
[330329408,1719258755890,150.5,0.0001997,62]
[330329409,1719258762874,157.894736,0.00013699,2]
[330329410,1719258841152,159.31964739,0.00017807,60]
[330329411,1719258856907,1605.2,0.000261,120]
[330329412,1719258870795,525.44492293,0.00017807,30]
[330329413,1719258872261,150.5,0.0001671,62]
[330329414,1719258872298,150.5,0.0001671,62]
[330329415,1719258872658,150.5,0.000167,62]
[330329416,1719258872708,150.5,0.000167,62]
[330329417,1719258873314,150.5,0.0001669,62]
[330329418,1719258873675,189.07,0.0001669,62]
[330329419,1719258874028,185.0,0.0001959,62]
[330329420,1719258880766,525.44492293,0.00017807,30]
[330329421,1719258882611,159.31964739,0.00016605,60]
[330329422,1719258915258,525.44492293,0.00023745,60]
[330329423,1719258936763,159.31964739,0.00023745,60]
[330329424,1719259081926,151.00302006,0.00020059,30]
[330329425,1719259081986,151.00302006,0.00019658,120]
[330329426,1719259118062,526.69168254,0.00017807,30]
[330329428,1719259131161,159.31964739,0.00017807,60]
[330329432,1719259168636,159.31964739,0.00021584,60]
[330329433,1719259218639,159.31964739,0.00021584,60]
[330329435,1719259303100,157.894736,0.00013699,2]
[330329436,1719259401901,151.00151002,0.00019915,30]
[330329437,1719259401963,151.00151002,0.00019516,120]
[330329438,1719259404386,159.31964739,0.00017807,60]
[330329439,1719259434870,1283.64184594,0.0001,2]
[330329440,1719259444148,159.31964739,0.00021584,60]
[330329441,1719259495156,159.31964739,0.00021584,60]
[330329444,1719259561188,300.0,0.00014,2]
[330329445,1719259590663,150.5,0.0001643,62]
[330329446,1719259591230,165.5,0.0001642,62]
[330329447,1719259592060,150.5,0.0001643,62]
[330329448,1719259592160,150.5,0.0001643,62]
[330329449,1719259592317,150.5,0.0001643,62]
[330329450,1719259592631,150.5,0.0001642,62]
[330329451,1719259592670,150.5,0.0001642,62]
[330329452,1719259592829,150.5,0.0001642,62]
[330329453,1719259593144,150.5,0.0001641,62]
[330329454,1719259593325,150.5,0.0001641,62]
[330329455,1719259593397,150.5,0.0001641,62]
[330329456,1719259593655,150.5,0.0001909,62]
[330329457,1719259594056,189.55,0.0001909,62]
[330329458,1719259594097,150.5,0.0001909,62]
[330329459,1719259594336,150.5,0.0001908,62]
[330329460,1719259594475,150.5,0.0001908,62]
[330329461,1719259594833,150.5,0.0001907,62]
[330329462,1719259594962,285.5,0.0001907,62]
[330329463,1719259595316,285.0,0.0002419,62]
[330329465,1719259640395,161.21149,0.00023562,60]
[330329466,1719259640692,161.21149,0.00023562,69]
[330329467,1719259640910,161.21149,0.00023562,77]
[330329471,1719259641152,161.21149,0.00023562,86]
[330329486,1719259641473,161.21149,0.00023562,94]
[330329492,1719259641682,161.21149,0.00023562,103]
[330329493,1719259642141,161.21149,0.00023562,111]
[330329494,1719259642449,161.21149,0.00023562,119]
[330329495,1719259681653,159.31964739,0.00017807,60]
[330329496,1719259719538,-161.21149,0.00023562,35]
[330329497,1719259719565,-161.21149,0.00023562,44]
[330329498,1719259719592,-161.21149,0.00023562,52]
[330329499,1719259719624,-1000.0,0.00024657,30]
[330329500,1719259719649,-1000.0,0.00024657,30]
[330329501,1719259719677,-1000.0,0.00024657,30]
[330329502,1719259719703,-1000.0,0.00024657,30]
[330329503,1719259719731,-1000.0,0.00024657,30]
[330329504,1719259719757,-1000.0,0.00024657,30]
[330329505,1719259719783,-1000.0,0.00024657,30]
[330329506,1719259719816,-1000.0,0.00024657,30]
[330329507,1719259719844,-1208.01208012,0.00024922,30]
[330329508,1719259719880,-500.0,0.00027397,30]
[330329509,1719259719909,-500.0,0.00027397,30]
[330329510,1719259719936,-500.0,0.00027397,30]
[330329511,1719259719963,-500.0,0.00027397,30]
[330329512,1719259719989,-500.0,0.00027397,30]
[330329513,1719259720018,-500.0,0.00027397,30]
[330329514,1719259720045,-500.0,0.00027397,30]
[330329515,1719259720073,-500.0,0.00027397,30]
[330329516,1719259720100,-500.0,0.00027397,30]
[330329517,1719259720127,-500.0,0.00027397,30]
[330329518,1719259720158,-500.0,0.00027397,30]
[330329519,1719259720184,-500.0,0.00027397,30]
[330329520,1719259720210,-500.0,0.00027397,30]
[330329521,1719259720237,-500.0,0.00027397,30]
[330329522,1719259720263,-500.0,0.00027397,30]
[330329523,1719259720293,-500.0,0.00027397,30]
[330329524,1719259720320,-500.0,0.00027397,30]
[330329525,1719259720347,-500.0,0.00027397,30]
[330329526,1719259720375,-622.49112564,0.00027397,30]
[330329527,1719259720404,-400.0,0.00027397,60]
[330329528,1719259720439,-400.0,0.00030137,60]
[330329529,1719259720473,-2416.02416024,0.00030187,120]
[330329530,1719259720506,-414.86806481,0.00032877,60]
[330329531,1719259720535,-200.0,0.00033495,120]
[330329532,1719259720567,-200.0,0.00033855,120]
[330329533,1719259720597,-1002.2751324,0.00038,120]
[330329534,1719259720626,-200.0,0.00038147,120]
[330329535,1719259720652,-151.81482132,0.00038462,30]
[330329536,1719259720680,-200.0,0.00039147,120]
[330329537,1719259720707,-12149.98130519,0.000399,60]
[330329538,1719259720734,-151.81482132,0.00040462,38]
[330329539,1719259720763,-152.0,0.00041127,31]
[330329540,1719259720795,-258.67776767,0.000415,120]
[330329541,1719259720823,-1616.67362657,0.000418,60]
[330329542,1719259720851,-152.0,0.00041866,31]
[330329543,1719259720879,-653.673494,0.00042,30]
[330329544,1719259720909,-500.0,0.0004233,30]
[330329545,1719259720936,-500.0,0.0004233,30]
[330329546,1719259720963,-500.0,0.0004233,30]
[330329547,1719259720990,-626.41427069,0.0004233,30]
[330329548,1719259721019,-500.0,0.0004233,30]
[330329549,1719259721052,-500.0,0.0004233,30]
[330329550,1719259721080,-500.0,0.0004233,30]
[330329551,1719259721108,-448.57934554,0.0004233,30]
[330329552,1719259721136,-151.81482132,0.00042462,47]
[330329553,1719259721165,-152.0,0.00042604,31]
[330329554,1719259721190,-552.0,0.00042697,30]
[330329555,1719259721258,-500.0,0.00042835,120]
[330329556,1719259721285,-500.0,0.00042835,120]
[330329557,1719259721320,-167.25,0.00042835,120]
[330329558,1719259721347,-874.84,0.00043835,120]
[330329559,1719259721373,-1000.0,0.00043835,120]
[330329560,1719259721398,-400.17954492,0.00043835,120]
[330329561,1719259721423,-500.0,0.00043835,30]
[330329562,1719259721483,-400.0,0.00044,30]
[330329563,1719259721509,-874.84,0.00044383,120]
[330329564,1719259721534,-151.81482132,0.00044462,55]
[330329565,1719259721585,-200.0,0.00044793,120]
[330329566,1719259721610,-41762.242618,0.000449,30]
[330329567,1719259721638,-874.84,0.00044931,120]
[330329568,1719259721663,-552.0,0.00044944,30]
[330329569,1719259721689,-150.0,0.00045,31]
[330329570,1719259721714,-174.41410202,0.00045,120]
[330329571,1719259721740,-5000.0,0.00045342,30]
[330329572,1719259721766,-874.84,0.00045479,120]
[330329573,1719259721840,-18812.05363025,0.00045816,90]
[330329574,1719259721867,-5161.05863513,0.00045816,90]
[330329575,1719259722016,-3762.41092605,0.00045816,90]
[330329576,1719259722064,-11543.5667867,0.0004588,30]
[330329577,1719259722092,-150.0,0.00046,33]
[330329578,1719259722119,-400.0,0.00046,30]
[330329579,1719259722148,-874.84,0.00046027,120]
[330329580,1719259722239,-3141.12648016,0.00046135,30]
[330329581,1719259722348,-2543.15318312,0.00046324,30]
[330329582,1719259722429,-11638.91707508,0.00046434,120]
[330329583,1719259722507,-151.81482132,0.00046462,63]
[330329584,1719259722561,-315.8,0.00046557,31]
[330329585,1719259722602,-874.84,0.00046575,120]
[330329586,1719259722628,-500.0,0.00046575,31]
[330329587,1719259722653,-400.6472154,0.00046637,30]
[330329588,1719259722680,-400.6472154,0.00046637,30]
[330329589,1719259722706,-4558.32060115,0.00046874,60]
[330329590,1719259722767,-2451.74808458,0.00046956,60]
[330329591,1719259722798,-200.0,0.00047,35]
[330329592,1719259722825,-874.84,0.00047123,120]
[330329593,1719259722850,-552.0,0.0004731,30]
[330329594,1719259722875,-874.84,0.00047671,120]
[330329595,1719259722901,-5000.0,0.00048,30]
[330329596,1719259722927,-400.0,0.00048,30]
[330329597,1719259722954,-874.84,0.00048219,120]
[330329598,1719259723020,-151.81482132,0.00048462,72]
[330329599,1719259723050,-874.84,0.00048767,120]
[330329600,1719259723075,-624.0,0.00049,90]
[330329601,1719259723100,-874.84,0.00049315,120]
[330329602,1719259723124,-600.0,0.00049315,120]
[330329603,1719259723149,-600.0,0.00049315,120]
[330329604,1719259723180,-600.0,0.00049315,120]
[330329605,1719259723207,-600.0,0.00049315,120]
[330329606,1719259723232,-600.0,0.00049315,120]
[330329607,1719259723294,-600.0,0.00049315,120]
[330329608,1719259723318,-610.20068422,0.00049315,120]
[330329609,1719259723343,-500.0,0.00049315,32]
[330329610,1719259723370,-624.0,0.00049589,120]
[330329611,1719259723396,-838378.39856151,0.000498,120]
[330329612,1719259723422,-2000.0,0.000498,60]
[330329613,1719259723447,-552.0,0.000498,30]
[330329614,1719259723472,-28028.73,0.00049863,120]
[330329615,1719259723496,-841.44,0.00049863,120]
[330329616,1719259723521,-500.0,0.00049863,120]
[330329617,1719259723550,-548.5,0.00049863,120]
[330329618,1719259723576,-874.84,0.00049863,120]
[330329619,1719259723602,-151.0,0.00049973,120]
[330329620,1719259723649,-1000.0,0.00049999,120]
[330329621,1719259723676,-100000.0,0.0005,120]
[330329622,1719259723715,-154.83742071,0.0005,30]
[330329623,1719259723740,-500.0,0.0005,120]
[330329624,1719259723779,-150.0,0.0005,41]
[330329625,1719259723807,-10000.0,0.0005,120]
[330329626,1719259723863,-10000.0,0.0005,30]
[330329627,1719259723887,-254.57915735,0.0005,120]
[330329628,1719259723914,-20350.946568,0.0005,30]
[330329629,1719259723941,-3998.93,0.0005,120]
[330329630,1719259723968,-3058.70228927,0.0005,120]
[330329631,1719259723993,-100000.0,0.0005,120]
[330329632,1719259724017,-3051.10913478,0.0005,120]
[330329633,1719259724045,-3112.0,0.0005,120]
[330329634,1719259724100,-1315.819823,0.0005,120]
[330329635,1719259724126,-204101.92719667,0.0005,120]
[330329636,1719259724154,-1556.96908687,0.0005,120]
[330329637,1719259724181,-5376.21830139,0.0005,60]
[330329638,1719259724206,-400.0,0.0005,30]
[330329639,1719259724234,-28028.73,0.0005041,120]
[330329640,1719259724261,-841.44,0.0005041,120]
[330329641,1719259724289,-500.0,0.0005041,120]
[330329642,1719259724337,-548.5,0.0005041,120]
[330329643,1719259724363,-874.84,0.0005041,120]
[330329644,1719259724388,-151.81482132,0.00050462,80]
[330329645,1719259724415,-28028.73,0.00050958,120]
[330329646,1719259724440,-841.44,0.00050958,120]
[330329647,1719259724469,-500.0,0.00050958,120]
[330329648,1719259724530,-548.5,0.00050958,120]
[330329649,1719259724569,-874.84,0.00050958,120]
[330329650,1719259724594,-150.0,0.00051,43]
[330329651,1719259724618,-200.0,0.00051217,120]
[330329652,1719259724686,-151.0,0.00051397,120]
[330329653,1719259724711,-28028.73,0.00051506,120]
[330329654,1719259724764,-841.44,0.00051506,120]
[330329655,1719259724789,-500.0,0.00051506,120]
[330329656,1719259724818,-548.5,0.00051506,120]
[330329657,1719259724884,-874.84,0.00051506,120]
[330329658,1719259724909,-624.0,0.00051781,120]
[330329659,1719259724935,-2000.0,0.000518,120]
[330329660,1719259724961,-7008.79,0.00052,30]
[330329661,1719259724986,-200.0,0.00052,45]
[330329662,1719259725011,-1707.0,0.00052,60]
[330329663,1719259725036,-28028.73,0.00052054,120]
[330329664,1719259725065,-841.44,0.00052054,120]
[330329665,1719259725090,-500.0,0.00052054,120]
[330329666,1719259725116,-548.5,0.00052054,120]
[330329667,1719259725142,-874.84,0.00052054,120]
[330329668,1719259725170,-500.0,0.00052054,33]
[330329669,1719259725196,-2883.31,0.00052054,120]
[330329670,1719259725221,-2883.31,0.00052054,120]
[330329671,1719259725246,-2883.31,0.00052054,120]
[330329672,1719259725271,-2883.31,0.00052054,120]
[330329673,1719259725301,-2883.31,0.00052054,120]
[330329674,1719259725325,-2883.31,0.00052054,120]
[330329675,1719259725351,-2883.31,0.00052054,120]
[330329676,1719259725374,-2883.31,0.00052054,120]
[330329677,1719259725399,-2883.31,0.00052054,120]
[330329678,1719259725423,-2883.31,0.00052054,120]
[330329679,1719259725569,-2883.31,0.00052054,120]
[330329680,1719259725592,-2883.31,0.00052054,120]
[330329681,1719259725615,-2883.31,0.00052054,120]
[330329682,1719259725640,-2883.31,0.00052054,120]
[330329683,1719259725664,-2883.31,0.00052054,120]
[330329684,1719259725688,-2883.31,0.00052054,120]
[330329685,1719259725713,-2883.31,0.00052054,120]
[330329686,1719259725737,-2883.31,0.00052054,120]
[330329687,1719259725761,-2883.31,0.00052054,120]
[330329688,1719259725784,-2883.31,0.00052054,120]
[330329689,1719259725809,-2883.31,0.00052054,120]
[330329690,1719259725832,-2883.31,0.00052054,120]
[330329691,1719259725856,-2883.31,0.00052054,120]
[330329692,1719259725880,-2883.33745341,0.00052054,120]
[330329693,1719259725904,-500.0,0.0005213,30]
[330329694,1719259725928,-500.0,0.00052136,30]
[330329695,1719259725952,-500.0,0.00052136,30]
[330329696,1719259725976,-500.0,0.00052136,30]
[330329697,1719259726001,-9688.81924022,0.00052136,120]
[330329698,1719259726025,-552.0,0.0005229,30]
[330329699,1719259726054,-151.81482132,0.00052462,88]
[330329700,1719259726079,-876.0,0.00052554,120]
[330329701,1719259726107,-28028.73,0.00052602,120]
[330329702,1719259726133,-841.44,0.00052602,120]
[330329703,1719259726161,-500.0,0.00052602,120]
[330329704,1719259726187,-548.5,0.00052602,120]
[330329705,1719259726213,-874.84,0.00052602,120]
[330329706,1719259726239,-1000000.99999999,0.000528,120]
[330329707,1719259726264,-151.0,0.00052822,120]
[330329708,1719259726287,-182.25517333,0.0005288,30]
[330329709,1719259726317,-2982.41122368,0.0005289,120]
[330329710,1719259726343,-9140.94388893,0.00053041,90]
[330329711,1719259726368,-28028.73,0.0005315,120]
[330329712,1719259726394,-841.44,0.0005315,120]
[330329713,1719259726421,-500.0,0.0005315,120]
[330329714,1719259726448,-548.5,0.0005315,120]
[330329715,1719259726475,-874.84,0.0005315,120]
[330329716,1719259726500,-155.89845674,0.00053474,120]
[330329717,1719259726527,-28028.73,0.00053698,120]
[330329718,1719259726555,-841.44,0.00053698,120]
[330329719,1719259726579,-500.0,0.00053698,120]
[330329720,1719259726603,-548.5,0.00053698,120]
[330329721,1719259726629,-874.84,0.00053698,120]
[330329722,1719259726654,-1304.01756435,0.0005388,110]
[330329723,1719259726679,-194.71354003,0.00054,120]
[330329724,1719259726703,-500.0,0.00054,30]
[330329725,1719259726728,-31385.83449462,0.00054,120]
[330329726,1719259726752,-400.0,0.00054,120]
[330329727,1719259726778,-151.0,0.0005411,120]
[330329728,1719259726806,-28028.73,0.00054246,120]
[330329729,1719259726831,-841.44,0.00054246,120]
[330329730,1719259726857,-261.94,0.00054246,120]
[330329731,1719259726883,-548.5,0.00054246,120]
[330329732,1719259726909,-874.84,0.00054246,120]
[330329733,1719259726934,-151.0,0.00054247,120]
[330329734,1719259726959,-631.0,0.0005437,120]
[330329735,1719259726984,-151.81482132,0.00054462,97]
[330329736,1719259727009,-12027.10123918,0.000545,120]